fUST/lending_fUST_20240118
["ID","MTS","AMOUNT","RATE_DAILY","PERIOD"]
[312013034,1705547440730,-3052.8924142,0.0002602,2]
[312013036,1705547440739,-3052.8924142,0.0002602,2]
[312013038,1705547440748,-1519.8296494,0.0002602,2]
[312013040,1705547440757,-1519.8296494,0.0002602,2]
[312013042,1705547440766,-3052.8924142,0.0002602,2]
[312013044,1705547440774,-1519.8296494,0.0002602,2]
[312013046,1705547440786,-3052.8924142,0.0002602,2]
[312013048,1705547440795,-1519.8296494,0.0002602,2]
[312013049,1705547440805,-3052.8924142,0.0002602,2]
[312013050,1705547440815,-3052.8924142,0.0002602,2]
[312013051,1705547440825,-3052.8924142,0.0002602,2]
[312013052,1705547440835,-499.99999999,0.0002602,2]
[312013054,1705547440844,-4121.40475914,0.0002602,2]
[312013056,1705547440854,-1519.82964938,0.0002602,2]
[312013058,1705547440864,-276000.0,0.00026021,2]
[312013060,1705547440873,-441.58419443,0.00026062,4]
[312013062,1705547440882,-500.0,0.00026062,4]
[312013064,1705547440891,-500.0,0.00026062,4]
[312013066,1705547440901,-500.0,0.00026062,4]
[312013068,1705547440910,-500.0,0.00026062,4]
[312013070,1705547440920,-500.0,0.00026062,4]
[312013072,1705547440930,-500.0,0.00026062,4]
[312013074,1705547440939,-500.0,0.00026062,4]
[312013076,1705547440948,-500.0,0.00026062,4]
[312013078,1705547440958,-238.41130388,0.00026062,4]
[312013079,1705547440967,-500.0,0.00026062,4]
[312013082,1705547440977,-500.0,0.00026062,4]
[312013083,1705547440986,-285.5184804,0.00026062,4]
[312013086,1705547440995,-500.0,0.00026062,4]
[312013087,1705547441004,-500.0,0.00026062,4]
[312013090,1705547441014,-500.0,0.00026062,4]
[312013091,1705547441023,-500.0,0.00026062,4]
[312013093,1705547441032,-316.53642438,0.00026062,4]
[312013095,1705547441041,-500.0,0.00026062,4]
[312013097,1705547441051,-500.0,0.00026062,4]
[312013099,1705547441060,-500.0,0.00026062,4]
[312013101,1705547441069,-500.0,0.00026062,4]
[312013104,1705547441079,-500.0,0.00026062,4]
[312013106,1705547441088,-500.0,0.00026062,4]
[312013108,1705547441098,-500.0,0.00026062,4]
[312013110,1705547441107,-500.0,0.00026062,4]
[312013111,1705547441116,-500.0,0.00026062,4]
[312013114,1705547441126,-500.0,0.00026062,4]
[312013115,1705547441135,-500.0,0.00026062,4]
[312013117,1705547441145,-500.0,0.00026062,4]
[312013119,1705547441154,-500.0,0.00026062,4]
[312013122,1705547441163,-500.0,0.00026062,4]
[312013124,1705547441172,-500.0,0.00026062,4]
[312013126,1705547441182,-500.0,0.00026062,4]
[312013128,1705547441191,-500.0,0.00026062,4]
[312013129,1705547441200,-474.45089306,0.00026062,4]
[312013132,1705547441210,-500.0,0.00026062,4]
[312013134,1705547441220,-500.0,0.00026062,4]
[312013136,1705547441230,-500.0,0.00026062,4]
[312013137,1705547441239,-180.47789623,0.00026062,4]
[312013140,1705547441249,-500.0,0.00026062,4]
[312013141,1705547441258,-500.0,0.00026062,4]
[312013143,1705547441266,-500.0,0.00026062,4]
[312013145,1705547441276,-500.0,0.00026062,4]
[312013147,1705547441285,-500.0,0.00026062,4]
[312013150,1705547441294,-500.0,0.00026062,4]
[312013152,1705547441303,-500.0,0.00026062,4]
[312013154,1705547441313,-500.0,0.00026062,4]
[312013155,1705547441323,-500.0,0.00026062,4]
[312013158,1705547441334,-500.0,0.00026062,4]
[312013160,1705547441343,-500.0,0.00026062,4]
[312013161,1705547441353,-500.0,0.00026062,4]
[312013163,1705547441362,-500.0,0.00026062,4]
[312013165,1705547441373,-64899.18306585,0.00026064,2]
[312013167,1705547441382,-50000.0,0.00026153,2]
[312013169,1705547441391,-304.05578471,0.00026232,2]
[312013171,1705547441400,-50000.0,0.00026242,2]
[312013173,1705547441409,-97315.74782898,0.00026287,2]
[312013174,1705547441418,-50000.0,0.00026332,2]
[312013175,1705547441428,-722.46780766,0.00026332,2]
[312013176,1705547441437,-722.46780766,0.00026332,2]
[312013177,1705547441447,-722.46780766,0.00026332,2]
[312013178,1705547441459,-722.46780766,0.00026332,2]
[312013179,1705547441468,-722.46780766,0.00026332,2]
[312013181,1705547441477,-722.46780766,0.00026332,2]
[312013183,1705547441486,-722.46780766,0.00026332,2]
[312013185,1705547441496,-722.46780766,0.00026332,2]
[312013187,1705547441505,-722.46780766,0.00026332,2]
[312013189,1705547441514,-722.46780766,0.00026332,2]
[312013190,1705547441524,-694.83237512,0.000264,2]
[312013192,1705547441533,-50000.0,0.00026421,2]
[312013194,1705547441544,-50000.0,0.00026488,2]
[312013196,1705547441554,-50000.0,0.0002651,2]
[312013198,1705547441563,-50000.0,0.00026599,2]
[312013200,1705547441573,-50000.0,0.00026688,2]
[312013202,1705547441582,-50000.0,0.00026688,2]
[312013204,1705547441590,-242.743,0.00027375,2]
[312013206,1705547441600,-223.73390528,0.00027385,2]
[312013208,1705547441609,-522.58360916,0.00027386,2]
[312013210,1705547441619,-175.0415776,0.00027386,2]
[312013212,1705547441628,-150.95004265,0.00027397,7]
[312013214,1705547441637,-971.21876,0.00027397,2]
[312013216,1705547441646,-261.3528024,0.000274,2]
[312013218,1705547441655,-3318.9973618,0.000275,2]
[312013220,1705547441665,-15614.83727926,0.000275,2]
[312013222,1705547441674,-623.74161876,0.0002772,2]
[312013224,1705547441682,-310.0,0.0002775,2]
[312013226,1705547441691,-290.00241025,0.00028,2]
[312013228,1705547441700,-154.9690062,0.00028,10]
[312013230,1705547441710,-345.5207472,0.00028,2]
[312013232,1705547441719,-305.46439516,0.00028,2]
[312013234,1705547441728,-6539.94705553,0.00028,2]
[312013236,1705547441737,-200.0,0.00028259,15]
[312013238,1705547441745,-348.0,0.00028259,15]
[312013240,1705547441754,-971.21876,0.00028415,2]
[312013241,1705547441763,-9635.65593328,0.00028637,5]
[312013243,1705547441774,-18654.9559391,0.00028749,2]
[312013245,1705547441784,-5488.92,0.00028797,2]
[312013247,1705547441793,-5488.92,0.00028797,2]
[312013249,1705547441802,-5488.92,0.00028797,2]
[312013259,1705547441884,-5488.92,0.00028797,2]
[312013261,1705547441893,-5488.92,0.00028797,2]
[312013263,1705547441903,-5488.92,0.00028797,2]
[312013265,1705547441912,-5488.92,0.00028797,2]
[312013266,1705547441921,-5488.92,0.00028797,2]
[312013268,1705547441931,-5488.92,0.00028797,2]
[312013270,1705547441940,-5488.92,0.00028797,2]
[312013273,1705547441950,-119970.67569572,0.000288,2]
[312013275,1705547441962,-1892.76557459,0.00028999,2]
[312013276,1705547441972,-154.9690062,0.00029,2]
[312013278,1705547441981,-2455.73923901,0.00029,2]
[312013280,1705547441990,-832.38723413,0.00029,2]
[312013282,1705547442000,-79662.70846132,0.00029,2]
[312013284,1705547442009,-2036.10625444,0.00029,2]
[312013286,1705547442018,-1500.0,0.00029,2]
[312013288,1705547442027,-620.18708094,0.00029106,2]
[312013290,1705547442037,-231.9716211,0.00029277,2]
[312013292,1705547442048,-153.0,0.00029315,2]
[312013294,1705547442057,-198.9993253,0.00029315,2]
[312013296,1705547442066,-231.9716211,0.0002939,2]
[312013298,1705547442075,-971.21876,0.00029432,2]
[312013300,1705547442085,-5000.0,0.00029477,5]
[312013302,1705547442095,-213.00013457,0.000295,30]
[312013304,1705547442104,-151.0,0.00029544,2]
[312013306,1705547442114,-153.0,0.00029589,2]
[312013308,1705547442126,-4708.94467695,0.00029748,2]
[312013310,1705547442135,-7690.29659657,0.00029748,2]
[312013312,1705547442144,-1922.57414914,0.00029748,2]
[312013314,1705547442153,-153.23014305,0.00029765,2]
[312013316,1705547442163,-406.08420108,0.000299,2]
[312013318,1705547442173,-33119.89609229,0.000299,2]
[312013320,1705547442183,-153.23014305,0.00029962,2]
[312013322,1705547442192,-283.01176432,0.0003,3]
[312013324,1705547442201,-687.89788967,0.0003,4]
[312013326,1705547442210,-243.91959085,0.0003,4]
[312013328,1705547442220,-154.9690062,0.0003,4]
[312013330,1705547442229,-195.1690538,0.0003,4]
[312013332,1705547442238,-154.9690062,0.0003,2]
[312013334,1705547442248,-682.23213824,0.0003,3]
[312013336,1705547442258,-154.9690062,0.0003,2]
[312013338,1705547442268,-650.89335401,0.0003,4]
[312013340,1705547442277,-640.81580837,0.0003,4]
[312013342,1705547442286,-232.19740588,0.0003,4]
[312013344,1705547442295,-166.71322997,0.0003,2]
[312013346,1705547442304,-29885.97240427,0.0003,2]
[312013347,1705547442313,-299.40501043,0.0003,2]
[312013349,1705547442323,-6192.60917587,0.0003,2]
[312013351,1705547442332,-23500.40849315,0.0003,2]
[312013353,1705547442342,-282561.64737656,0.0003,2]
[312013355,1705547442351,-1908.4624739,0.0003,2]
[312013357,1705547442361,-1500.0,0.0003,2]
[312013359,1705547442371,-287.25958641,0.0003,4]
[312013361,1705547442380,-233.0,0.0003,2]
[312013363,1705547442389,-153.756851,0.0003,2]
[312013365,1705547442398,-231.9716211,0.00030005,7]
[312013367,1705547442408,-1761.29,0.00030136,2]
[312013369,1705547442418,-903.07262342,0.00030208,4]
[312013371,1705547442427,-153.23014305,0.00030225,7]
[312013373,1705547442437,-44544.40725712,0.00030229,7]
[312013375,1705547442458,-5520.40793407,0.00030229,7]
[312013470,1705547443335,-46114.38078269,0.00030229,7]
[312013486,1705547443497,-999.97625958,0.00030229,7]
[312014044,1705548632368,-849.59512114,0.0002109,2]
[312014046,1705548632378,-154.9690062,0.00021091,2]
[312014048,1705548632387,-327.24959811,0.00021091,2]
[312014050,1705548632396,-1581.11940922,0.00021091,2]
[312014052,1705548632405,-154.9690062,0.00021091,2]
[312014054,1705548632415,-1815.75822214,0.00021092,2]
[312014056,1705548632424,-834.46997383,0.00021093,2]
[312014062,1705548632468,-505.61803037,0.00021093,2]
[312014064,1705548632478,-603.79622043,0.00021093,2]
[312014558,1705548638401,-85.03087164,0.00021093,2]
[312014559,1705548638410,-2995.72102978,0.00021093,2]
[312014560,1705548638419,-175.163184,0.00021095,2]
[312014561,1705548638428,-174.18605,0.00021442,2]
[312014562,1705548638437,-166.666666,0.00021918,2]
[312014563,1705548638446,-293.23530462,0.00022,4]
[312014564,1705548638455,-1630.40482803,0.00022,2]
[312014817,1705548641408,-154.9690062,0.00021092,2]
[312014819,1705548641417,-1845.93715998,0.00022,2]
[312014964,1705548643322,-482.76334709,0.00022,2]
[312014967,1705548643331,-200.0,0.00022147,7]
[312014969,1705548643341,-425.62034809,0.0002243,2]
[312014970,1705548643350,-166.666666,0.00022431,2]
[312014973,1705548643360,-166.666666,0.00022944,2]
[312014974,1705548643369,-470.34681749,0.00023192,2]
[312014976,1705548643378,-166.666666,0.00023456,2]
[312014978,1705548643387,-1077.02601016,0.00023749,2]
[312015198,1705548646369,-1581.11940922,0.00023748,2]
[312015200,1705548646379,-275.89635224,0.00023748,2]
[312015202,1705548646388,-2862.85727404,0.00023749,2]
[312015243,1705549308050,65453.0,0.0002,2]
[312015245,1705549345159,6849.32,0.00019997,3]
[312015248,1705549357080,5707.77,0.00019997,3]
[312015249,1705549360236,175.10808693,0.0002,2]
[312015250,1705549360755,688.82709207,0.0002,2]
[312015251,1705549367414,7770.17,0.00019997,3]
[312015252,1705549371183,154.9690062,0.0002,2]
[312015253,1705549372557,1340.0880042,0.0002,2]
[312015254,1705549375265,154.9690062,0.0002,2]
[312015255,1705549376264,849.59512114,0.0002,2]
[312015256,1705549379422,6475.14,0.00019997,3]
[312015257,1705549382932,2033.10997564,0.0002,2]
[312015258,1705549389201,273.38459805,0.0002,2]
[312015259,1705549390564,5395.95,0.00019997,3]
[312015260,1705549390977,213.27624755,0.0002,2]
[312015261,1705549397693,154.9690062,0.0002,2]
[312015262,1705549401115,4496.63,0.00019997,3]
[312015263,1705549401637,879.76554827,0.0002,2]
[312015264,1705549411680,3747.19,0.00019994,3]
[312015265,1705549411972,8881.66382482,0.00018993,2]
[312015266,1705549415641,879.76554827,0.0002,2]
[312015267,1705549423140,3122.66,0.00019994,3]
[312015268,1705549433641,879.76554827,0.0002,2]
[312015269,1705549434789,2602.22,0.00019994,3]
[312015270,1705549446103,2168.51,0.00019994,3]
[312015271,1705549453643,306.50458985,0.0002,2]
[312015272,1705549457798,1807.09,0.00019994,3]
[312015273,1705549469058,1505.91,0.00019992,3]
[312015274,1705549480209,154.9690062,0.0002,2]
[312015275,1705549480463,1254.93,0.00019992,3]
[312015276,1705549492333,1045.77,0.00019992,3]
[312015277,1705549502717,871.48,0.00019992,3]
[312015278,1705549511578,1340.0880042,0.00019999,2]
[312015279,1705549514634,726.23,0.00019992,3]
[312015280,1705549527583,1340.0880042,0.00019999,2]
[312015281,1705549533278,154.9690062,0.00019998,2]
[312015282,1705549537089,504.33,0.0001999,3]
[312015283,1705549545583,1340.0880042,0.00019999,2]
[312015284,1705549548240,521.14,0.0001999,3]
[312015285,1705549549142,209.54691797,0.00019999,2]
[312015286,1705549559691,434.28,0.0001999,3]
[312015287,1705549561717,1340.0880042,0.00019999,2]
[312015288,1705549567509,21671.8470958,0.00019999,2]
[312015289,1705549568771,20860.81062343,0.00019999,2]
[312015290,1705549570071,361.9,0.0001999,3]
[312015291,1705549577601,1340.0880042,0.00019999,2]
[312015292,1705549581425,301.58,0.0001999,3]
[312015293,1705549581511,5771.584808,0.00019799,2]
[312015294,1705549582774,2800.19931048,0.00019999,2]
[312015295,1705549593116,251.32,0.0001999,3]
[312015296,1705549599599,1340.0880042,0.00019999,2]
[312015297,1705549603498,209.43,0.0001999,3]
[312015298,1705549615313,174.53,0.0001999,3]
[312015299,1705549617599,1340.0880042,0.00019999,2]
[312015300,1705549624600,1581.11940922,0.00019999,2]
[312015301,1705549625881,872.67,0.0001999,3]
[312015302,1705549637597,1340.0880042,0.00019999,2]
[312015303,1705549638594,968.66939229,0.00019999,2]
[312015304,1705549659608,1340.0880042,0.00019999,2]
[312015305,1705549675606,1097.86106668,0.00019999,2]
[312015307,1705549682095,19846.52895814,0.00019999,2]
[312015308,1705549683946,5178.14619186,0.00019799,2]
[312015309,1705549688187,166.49194019,0.00019999,2]
[312015310,1705549691718,154.9690062,0.00019999,2]
[312015311,1705549694844,20860.81062343,0.00019999,2]
[312015312,1705549697309,9376.22662491,0.00019999,2]
[312015505,1705549841741,-253.93572922,0.00018934,2]
[312015506,1705549841750,-2037.73028477,0.00018934,2]
[312015507,1705549841759,-163.01320835,0.00018934,2]
[312015508,1705549841768,-526.3874506,0.00018934,2]
[312015509,1705549841777,-1292.89594537,0.00018934,2]
[312015510,1705549841786,-154.9690062,0.00018934,2]
[312015511,1705549841795,-154.9690062,0.00018934,2]
[312015512,1705549841804,-1252.54128949,0.00018935,2]
[312015513,1705549841813,-323.33687588,0.00018935,2]
[312015514,1705549841822,-3483.390888,0.00018935,2]
[312015515,1705549841831,-2033.10997564,0.00018936,2]
[312015516,1705549841840,-154.9690062,0.00018936,2]
[312015517,1705549841849,-20887.67394558,0.00018936,2]
[312015518,1705549841859,-160.90351567,0.00018936,2]
[312015519,1705549841868,-521.75377805,0.00018937,2]
[312015520,1705549841877,-1695.61964164,0.00018937,2]
[312015521,1705549841887,-902.97118459,0.00018937,2]
[312015522,1705549841896,-1992.22396465,0.00018937,2]
[312015523,1705549841904,-178.79017593,0.00018937,2]
[312015524,1705549841914,-1265.64175415,0.00018937,2]
[312015525,1705549841922,-166.87143926,0.00018937,2]
[312015526,1705549841931,-643.9449239,0.00018938,2]
[312015527,1705549841941,-175.10808693,0.00018938,2]
[312015528,1705549841950,-154.9690062,0.00018938,3]
[312015529,1705549841958,-301.73207078,0.00018938,2]
[312015530,1705549841967,-154.9690062,0.00018939,2]
[312015531,1705549841977,-1551.87729553,0.00018939,2]
[312015532,1705549841985,-687.4903872,0.0001894,2]
[312015533,1705549841995,-213.27624755,0.00018941,2]
[312015534,1705549842005,-711.33385529,0.00018941,2]
[312015535,1705549842014,-265.2811879,0.00018941,2]
[312015536,1705549842022,-283.923342,0.00018942,2]
[312015537,1705549842031,-1190.72,0.00019487,3]
[312015538,1705549842040,-1859.11,0.00019487,3]
[312015539,1705549842050,-155.34719469,0.00019495,2]
[312015540,1705549842061,-155.729433,0.00019496,2]
[312015541,1705549842070,-13711.08982792,0.00019497,2]
[312015542,1705549842081,-81157.58352198,0.00019497,2]
[312015543,1705549842090,-15903.84683037,0.00019498,2]
[312015544,1705549842100,-1113.4986138,0.000195,2]
[312015545,1705549842111,-2000.61120852,0.00019785,2]
[312015546,1705549842121,-200.0,0.00019887,2]
[312015547,1705549842130,-164.97376149,0.00019985,2]
[312015548,1705549842139,-332.83318015,0.00019985,2]
[312015549,1705549842148,-262.09791275,0.00019985,2]
[312015550,1705549842158,-309.9070279,0.00019985,2]
[312015551,1705549842168,-155.0886973,0.00019986,2]
[312015552,1705549842177,-861.81666274,0.00019995,2]
[312015553,1705549842186,-155.14141762,0.00019996,2]
[312015554,1705549842197,-156.81264042,0.00019996,2]
[312015555,1705549842206,-8754.07446216,0.00019996,2]
[312015556,1705549842215,-326.24580349,0.00019997,2]
[312015557,1705549842226,-15210.0058104,0.00019997,2]
[312015558,1705549842235,-19687.81457688,0.00019997,2]
[312015559,1705549842308,-11367.74938869,0.00019998,2]
[312015560,1705549842318,-260.95401004,0.00019998,2]
[312015561,1705549842328,-243.09514202,0.00019998,2]
[312015562,1705549842340,-881.70309742,0.00019998,2]
[312015563,1705549842349,-679.65547885,0.00019998,2]
[312015564,1705549842363,-155.18089386,0.00019998,2]
[312015565,1705549842372,-286.17658089,0.00019998,2]
[312015566,1705549842382,-616.3385083,0.00019998,2]
[312015567,1705549842391,-329.24416506,0.00019998,2]
[312015568,1705549842400,-3845.69042914,0.00019999,2]
[312015569,1705549842409,-1171.7370558,0.00019999,2]
[312015570,1705549842418,-2356.24809126,0.00019999,2]
[312015571,1705549842427,-313.51664528,0.00019999,2]
[312015572,1705549842436,-283990.84773363,0.00019999,2]
[312015573,1705549842445,-547.46838753,0.00019999,2]
[312015574,1705549842454,-167.52445348,0.00019999,2]
[312015575,1705549842464,-154.9690062,0.00019999,2]
[312015576,1705549842474,-155.51878758,0.00019999,2]
[312015577,1705549842483,-155.51789431,0.00019999,2]
[312015578,1705549842492,-154.9690062,0.0002,2]
[312015579,1705549842502,-154.9690062,0.0002,2]
[312015580,1705549842511,-154.9690062,0.0002,2]
[312015581,1705549842520,-154.9690062,0.0002,2]
[312015582,1705549842529,-155.16448353,0.0002,2]
[312015583,1705549842538,-849.59512114,0.0002,2]
[312015584,1705549842548,-154.9690062,0.0002,2]
[312015585,1705549842557,-2995.72102978,0.0002,2]
[312015586,1705549842566,-678.05962952,0.0002,2]
[312015587,1705549842575,-154.9690062,0.0002,2]
[312015588,1705549842584,-176.93243673,0.0002,2]
[312015589,1705549842593,-238.02437486,0.0002,2]
[312015590,1705549842602,-187.4856675,0.0002,2]
[312015591,1705549842611,-156.71629179,0.0002,2]
[312015592,1705549842620,-570.6927824,0.0002,2]
[312015593,1705549842630,-154.9690062,0.0002,2]
[312015594,1705549842639,-1196.96135251,0.0002,2]
[312015595,1705549842649,-154.9690062,0.0002,2]
[312015596,1705549842658,-155.49693528,0.00020004,2]
[312015597,1705549842667,-480.25207479,0.00020005,2]
[312015598,1705549842676,-521.29319614,0.00020007,2]
[312015599,1705549842685,-2078.38738153,0.0002001,2]
[312015600,1705549842694,-2101.67947703,0.0002001,2]
[312015601,1705549842704,-470.34681749,0.0002001,2]
[312015602,1705549842713,-24900.0,0.00020021,2]
[312015603,1705549842723,-169.223299,0.00020122,2]
[312015604,1705549842732,-6761.51571557,0.00020923,2]
[312015605,1705549842741,-1815.75822214,0.00021,2]
[312015606,1705549842751,-327.24959811,0.00021,2]
[312015607,1705549842760,-1442.86263278,0.00021007,2]
[312015608,1705549842769,-299.12465914,0.00021031,2]
[312015609,1705549842778,-223.73390528,0.00021365,2]
[312015610,1705549842788,-280.0,0.00021876,7]
[312015611,1705549842797,-166.666666,0.00021918,2]
[312015612,1705549842806,-293.23530462,0.00022,4]
[312015613,1705549842816,-3959.1053351,0.00022,2]
[312015614,1705549842825,-425.62034809,0.00022,2]
[312015615,1705549842835,-155.15540084,0.00022,2]
[312015616,1705549842844,-166.666666,0.00022431,2]
[312015617,1705549842854,-9112.94247828,0.00022562,2]
[312015618,1705549842863,-166.666666,0.00022944,2]
[312015619,1705549842873,-166.666666,0.00023456,2]
[312015620,1705549842883,-643.16626519,0.00023507,2]
[312015621,1705549842893,-325.02114179,0.00023507,2]
[312015622,1705549842902,-260.85215973,0.00023507,2]
[312015623,1705549842912,-1433.17230406,0.00023507,2]
[312015624,1705549842922,-294.37441189,0.00023507,2]
[312015625,1705549842931,-200.67546493,0.00023507,2]
[312015626,1705549842941,-377.16950447,0.00023507,2]
[312015627,1705549842950,-190.87515255,0.00023507,2]
[312015628,1705549842959,-157.93778508,0.00023507,2]
[312015629,1705549842970,-225.08682209,0.00023508,2]
[312015630,1705549842980,-1242.90009054,0.00023508,2]
[312015632,1705549842989,-500.0,0.00023646,4]
[312015634,1705549843008,-500.0,0.00023646,4]
[312015635,1705549843017,-500.0,0.00023646,4]
[312015637,1705549843027,-500.0,0.00023646,4]
[312015639,1705549843036,-441.58419443,0.00023646,4]
[312015641,1705549843046,-500.0,0.00023646,4]
[312015642,1705549843055,-500.0,0.00023646,4]
[312015643,1705549843064,-500.0,0.00023646,4]
[312015644,1705549843074,-500.0,0.00023646,4]
[312015645,1705549843083,-500.0,0.00023646,4]
[312015646,1705549843093,-500.0,0.00023646,4]
[312015647,1705549843103,-423.40238677,0.00023646,4]
[312015648,1705549843112,-500.0,0.00023646,4]
[312015649,1705549843122,-500.0,0.00023646,4]
[312015650,1705549843132,-500.0,0.00023646,4]
[312015651,1705549843142,-500.0,0.00023646,4]
[312015653,1705549843151,-500.0,0.00023646,4]
[312015655,1705549843160,-500.0,0.00023646,4]
[312015657,1705549843170,-624.20941727,0.00023646,4]
[312015658,1705549843179,-500.0,0.00023646,4]
[312015659,1705549843190,-237.35016714,0.00023646,4]
[312015660,1705549843204,-500.0,0.00023646,4]
[312015662,1705549843213,-500.0,0.00023646,4]
[312015664,1705549843222,-500.0,0.00023646,4]
[312015666,1705549843232,-500.0,0.00023646,4]
[312015668,1705549843242,-512.63078575,0.00023646,4]
[312015670,1705549843252,-327.86109703,0.00023646,4]
[312015673,1705549843262,-500.0,0.00023646,4]
[312015674,1705549843272,-500.0,0.00023646,4]
[312015675,1705549843281,-500.0,0.00023646,4]
[312015677,1705549843292,-500.0,0.00023646,4]
[312015679,1705549843301,-500.0,0.00023646,4]
[312015681,1705549843310,-500.0,0.00023646,4]
[312015683,1705549843320,-500.0,0.00023646,4]
[312015685,1705549843330,-276000.0,0.00023647,2]
[312015687,1705549843339,-304.05578473,0.00023647,2]
[312015689,1705549843348,-165.82814555,0.00023747,2]
[312015691,1705549843360,-197.65983581,0.00023747,2]
[312015693,1705549843371,-302.63617592,0.00023747,2]
[312015695,1705549843380,-276.82054434,0.00023747,2]
[312015697,1705549843390,-192.65851913,0.00023747,2]
[312015699,1705549843400,-10402.05377441,0.00023747,2]
[312015701,1705549843409,-155.96892002,0.00023747,2]
[312015703,1705549843419,-197.64414411,0.00023747,2]
[312015705,1705549843428,-155.32468701,0.00023747,2]
[312015707,1705549843438,-364.19012371,0.00023747,2]
[312015709,1705549843447,-157.36067435,0.00023747,2]
[312015711,1705549843456,-877.99385058,0.00023747,2]
[312015713,1705549843465,-200.0,0.00023747,2]
[312015715,1705549843474,-155.18840639,0.00023747,2]
[312015717,1705549843485,-155.58141865,0.00023747,2]
[312015719,1705549843494,-300.0,0.00023749,2]
[312015725,1705549843557,-154.9690062,0.00023749,2]
[312015727,1705549843567,-216.55502923,0.00023749,2]
[312015729,1705549843576,-3502.19720648,0.00023749,2]
[312015731,1705549843585,-166.666666,0.00023969,2]
[312015733,1705549843594,-8881.66382482,0.00023993,2]
[312015735,1705549843604,-1830.62942806,0.00024,2]
[312015737,1705549843613,-4010.78536694,0.00024,2]
[312015739,1705549843622,-391.0,0.00024064,7]
[312015741,1705549843631,-2000.0,0.000243,2]
[312015743,1705549843640,-2000.0,0.0002431,2]
[312015745,1705549843652,-2000.0,0.0002432,2]
[312015747,1705549843662,-2000.0,0.0002433,2]
[312015749,1705549843671,-2000.0,0.0002434,2]
[312015751,1705549843679,-2000.0,0.0002435,2]
[312015753,1705549843688,-2000.0,0.0002436,2]
[312015755,1705549843697,-304.05578471,0.00024369,2]
[312015757,1705549843706,-2000.0,0.0002437,2]
[312015759,1705549843715,-2000.0,0.0002438,2]
[312015761,1705549843725,-2000.0,0.0002439,2]
[312015762,1705549843735,-2000.0,0.000244,2]
[312015764,1705549843744,-2000.0,0.0002441,2]
[312015766,1705549843753,-2000.0,0.0002442,2]
[312015768,1705549843762,-2000.0,0.0002443,2]
[312015770,1705549843770,-2000.0,0.0002444,2]
[312015772,1705549843779,-2000.0,0.0002445,2]
[312015774,1705549843788,-2000.0,0.0002446,2]
[312015776,1705549843797,-2000.0,0.0002447,2]
[312015778,1705549843806,-2000.0,0.0002448,2]
[312015780,1705549843816,-166.666666,0.00024482,2]
[312015782,1705549843825,-2000.0,0.0002449,2]
[312015784,1705549843834,-2000.0,0.000245,2]
[312015786,1705549843843,-2000.0,0.0002451,2]
[312015788,1705549843852,-2000.0,0.0002452,2]
[312015789,1705549843861,-2000.0,0.0002453,2]
[312015791,1705549843870,-2000.0,0.0002454,2]
[312015793,1705549843880,-2000.0,0.0002455,2]
[312015795,1705549843889,-2000.0,0.0002456,2]
[312015797,1705549843898,-3762.444403,0.0002457,2]
[312015799,1705549843907,-200.0,0.00024658,2]
[312015801,1705549843916,-497.89805688,0.0002495,5]
[312015803,1705549843925,-4718.82684458,0.00025,2]
[312015804,1705549843935,-1045.45812768,0.00025,2]
[312015806,1705549843944,-3000.0,0.00025,2]
[312015808,1705549843953,-274.5510469,0.00025,2]
[312015810,1705549843962,-154.9690062,0.00025,2]
[312015812,1705549843971,-209.65976541,0.00025,2]
[312015814,1705549843981,-258.44452491,0.00025,2]
[312015816,1705549843990,-294.64825726,0.00025,2]
[312015818,1705549844006,-678.93201338,0.00025,2]
[312015820,1705549844015,-304.05578471,0.0002509,2]